[Event "Hungary Olimpic Hopes 2022"]
[Site "Tapolca"]
[Date "2022.06.25"]
[Round "5.8"]
[White "Horvath, Greta"]
[Black "Bende, Eniko Tunde"]
[Result "0-1"]
[ECO "B35"]
[WhiteElo "1365"]
[BlackElo "1142"]
[Annotator "NA RC"]
[PlyCount "68"]
[EventDate "2022.06.23"]
[EventType "swiss"]
[EventCountry "HUN"]
[SourceTitle "playchess.com"]
[Source "ChessBase"]
[SourceQuality "1"]
[TimeControl "5400+30"]

1. e4 {[%emt 0:00:03]} c5 {[%emt 0:00:07]} 2. Nf3 {[%emt 0:00:05]} Nc6 {[%emt 0:00:08]} 3. d4 {[%emt 0:00:07]} cxd4 {[%emt 0:00:12]} 4. Nxd4 {[%emt 0:00:07]} g6 {[%emt 0:00:14]} 5. Nc3 {[%emt 0:00:05]} Bg7 {[%emt 0:00:16]} 6. Be3 {[%emt 0:00:06]} Nf6 {[%emt 0:00:18]} 7. Bc4 {[%emt 0:00:17]} O-O {[%emt 0:00:19]} 8. O-O {[%emt 0:01:21]} Nxe4 {[%emt 0:00:19]} 9. Bxf7+ {[%emt 0:03:25]} Rxf7 {[%emt 0:02:31]} 10. Nxe4 {[%emt 0:00:41]} Rf8 11. Qd2 {[%emt 0:09:19]} a6 {[%emt 0:03:13]} 12. f4 {[%emt 0:07:06]} Qc7 13. c3 {[%emt 0:05:37]} d5 {[%emt 0:04:00]} 14. Ng3 {[%emt 0:01:34]} Qd6 {[%emt 0:01:54]} 15. Rad1 {[%emt 0:08:04]} e6 {[%emt 0:01:47]} 16. Nb3 b6 {[%emt 0:12:20]} 17. Bxb6 {[%emt 0:06:41]} Qb8 {[%emt 0:00:27]} 18. Bc5 {[%emt 0:01:06]} Rd8 {[%emt 0:00:48]} 19. Rf2 {[%emt 0:02:34]} Qb5 {[%emt 0:00:39]} 20. Bd4 {[%emt 0:04:09]} Nxd4 {[%emt 0:01:08]} 21. Nxd4 {[%emt 0:00:21]} Qc4 {[%emt 0:01:13]} 22. b3 {[%emt 0:02:48]} Qc7 {[%emt 0:00:38]} 23. Re2 {[%emt 0:00:52]} Re8 {[%emt 0:01:07]} 24. Rc1 {[%emt 0:02:32]} Bd7 {[%emt 0:00:38]} 25. c4 {[%emt 0:01:19]} Qc5 {[%emt 0:00:42]} 26. Rd1 {[%emt 0:01:53]} Rac8 {[%emt 0:04:06]} 27. cxd5 {[%emt 0:03:52]} exd5 {[%emt 0:00:43]} 28. Rxe8+ {[%emt 0:00:45]} Rxe8 {[%emt 0:00:26]} 29. Kh1 {[%emt 0:00:27]} Bxd4 {[%emt 0:00:47]} 30. Rc1 {[%emt 0:01:17]} Qb6 {[%emt 0:02:48]} 31. Re1 {[%emt 0:01:00]} Rxe1+ {[%emt 0:01:00]} 32. Qxe1 {[%emt 0:00:09]} Qe6 {[%emt 0:00:36]} 33. Qb4 {[%emt 0:00:27]} Qe3 {[%emt 0:00:53]} 34. Qb8+ {[%emt 0:00:29]} Kf7 {[%emt 0:00:21]} 0-1

[Event "Hungary Olimpic Hopes 2022"]
[Site "Tapolca"]
[Date "2022.06.25"]
[Round "5.9"]
[White "Bod, Marton"]
[Black "Feher, Botond"]
[Result "1-0"]
[ECO "B76"]
[WhiteElo "1738"]
[BlackElo "1792"]
[Annotator "NA RC"]
[PlyCount "35"]
[EventDate "2022.06.23"]
[EventType "swiss"]
[EventCountry "HUN"]
[SourceTitle "playchess.com"]
[Source "ChessBase"]
[SourceQuality "1"]
[TimeControl "5400+30"]

1. e4 c5 {[%emt 0:00:08]} 2. Nf3 {[%emt 0:00:25]} d6 {[%emt 0:00:12]} 3. d4 {[%emt 0:00:34]} cxd4 {[%emt 0:00:00]} 4. Nxd4 {[%emt 0:00:15]} Nf6 {[%emt 0:00:00]} 5. Nc3 {[%emt 0:00:31]} g6 6. Be3 {[%emt 0:00:26]} Bg7 {[%emt 0:00:28]} 7. f3 {[%emt 0:00:36]} O-O {[%emt 0:00:20]} 8. Qd2 {[%emt 0:05:59]} Nc6 {[%emt 0:04:32]} 9. O-O-O {[%emt 0:01:12]} Bd7 {[%emt 0:04:58]} 10. h4 Rc8 {[%emt 0:00:31]} 11. h5 {[%emt 0:02:51]} Nxh5 {[%emt 0:00:20]} 12. g4 Ng3 13. Rh3 {[%emt 0:01:38]} Nxf1 {[%emt 0:00:33]} 14. Rxf1 {[%emt 0:09:22]} Ne5 {[%emt 0:06:27]} 15. Qh2 {[%emt 0:13:23]} Nc4 {[%emt 0:08:54]} 16. Rxh7 {[%emt 0:00:26]} Nxe3 17. Rh8+ {[%emt 0:00:08]} Bxh8 {[%emt 0:01:38]} 18. Rh1 {[%emt 0:00:36]} 1-0

[Event "Hungary Olimpic Hopes 2022"]
[Site "Tapolca"]
[Date "2022.06.25"]
[Round "5.10"]
[White "Lehocz, Jozsef Jr."]
[Black "Szabo, Akos"]
[Result "1/2-1/2"]
[ECO "E09"]
[WhiteElo "1963"]
[BlackElo "1662"]
[Annotator "RC"]
[PlyCount "106"]
[EventDate "2022.06.23"]
[EventType "swiss"]
[EventCountry "HUN"]
[SourceTitle "playchess.com"]
[Source "ChessBase"]
[SourceQuality "1"]
[TimeControl "5400+30"]

1. Nf3 {[%emt 0:00:02]} d5 {[%emt 0:00:11]} 2. c4 {[%emt 0:00:05]} e6 {[%emt 0:00:05]} 3. g3 {[%emt 0:00:10]} Nf6 {[%emt 0:00:07]} 4. Bg2 {[%emt 0:00:09]} Be7 {[%emt 0:00:06]} 5. O-O {[%emt 0:01:31]} O-O {[%emt 0:00:06]} 6. d4 Nbd7 {[%emt 0:01:15]} 7. Nbd2 {[%emt 0:04:14]} c6 {[%emt 0:00:14]} 8. Qc2 {[%emt 0:01:00]} b6 {[%emt 0:00:06]} 9. b3 {[%emt 0:01:03]} Bb7 {[%emt 0:01:27]} 10. Bb2 {[%emt 0:00:44]} Rc8 {[%emt 0:01:25]} 11. Rac1 {[%emt 0:05:50]} Ba6 {[%emt 0:06:56]} 12. Rfd1 {[%emt 0:13:08]} Qc7 {[%emt 0:02:13]} 13. e4 {[%emt 0:01:58]} Qb8 {[%emt 0:09:53]} 14. Qb1 {[%emt 0:02:11]} Rfd8 {[%emt 0:01:08]} 15. Bf1 {[%emt 0:06:57]} Bb7 16. Bd3 {[%emt 0:09:07]} dxe4 {[%emt 0:03:34]} 17. Nxe4 {[%emt 0:00:40]} Nxe4 {[%emt 0:00:10]} 18. Bxe4 {[%emt 0:00:21]} Nf6 {[%emt 0:00:11]} 19. Ne5 {[%emt 0:09:29]} Nxe4 {[%emt 0:06:59]} 20. Qxe4 {[%emt 0:00:11]} Bf6 {[%emt 0:04:37]} 21. Qf4 {[%emt 0:01:27]} Bxe5 {[%emt 0:00:24]} 22. dxe5 Rxd1+ {[%emt 0:00:47]} 23. Rxd1 {[%emt 0:00:51]} Rd8 24. Rd6 {[%emt 0:00:28]} c5 {[%emt 0:07:40]} 25. Qg5 {[%emt 0:06:38]} Re8 {[%emt 0:03:04]} 26. Qd2 {[%emt 0:00:38]} h6 {[%emt 0:01:00]} 27. Kf1 {[%emt 0:09:20]} Ba8 {[%emt 0:00:35]} 28. Rd3 {[%emt 0:02:08]} Qb7 {[%emt 0:03:13]} 29. f3 {[%emt 0:00:21]} Qb8 {[%emt 0:02:06]} 30. Kf2 {[%emt 0:01:38]} Bb7 {[%emt 0:00:07]} 31. Bc3 {[%emt 0:00:26]} Ba8 {[%emt 0:01:02]} 32. Ke1 {[%emt 0:00:32]} Bc6 {[%emt 0:00:56]} 33. Kf2 {[%emt 0:00:33]} Ba8 {[%emt 0:00:19]} 34. Rd6 {[%emt 0:00:22]} Qb7 {[%emt 0:00:36]} 35. Qd3 {[%emt 0:00:29]} Qa6 {[%emt 0:02:56]} 36. a4 {[%emt 0:00:10]} Qc8 {[%emt 0:03:08]} 37. Rd7 {[%emt 0:01:05]} Bc6 {[%emt 0:02:16]} 38. Rd6 {[%emt 0:00:14]} a5 {[%emt 0:02:08]} 39. h4 {[%emt 0:00:30]} Qa8 {[%emt 0:01:44]} 40. g4 {[%emt 0:00:41]} Rf8 {[%emt 0:02:40]} 41. Kg3 {[%emt 0:01:52]} Kh8 {[%emt 0:01:32]} 42. Bd2 {[%emt 0:02:45]} Kg8 {[%emt 0:02:45]} 43. h5 {[%emt 0:01:18]} Kh8 {[%emt 0:01:25]} 44. g5 {[%emt 0:01:20]} hxg5 {[%emt 0:01:30]} 45. Bxg5 {[%emt 0:00:09]} Rg8 {[%emt 0:02:43]} 46. Kf2 {[%emt 0:01:27]} Rf8 {[%emt 0:07:29]} 47. Qd2 {[%emt 0:08:41]} Bxf3 {[%emt 0:01:15]} 48. Bf6 {[%emt 0:00:08]} Kh7 {[%emt 0:01:04]} 49. Be7 {[%emt 0:03:53]} Bxh5 {[%emt 0:10:07]} 50. Bxf8 {[%emt 0:01:00]} Qf3+ {[%emt 0:02:01]} 51. Ke1 {[%emt 0:00:18]} Qh1+ {[%emt 0:01:07]} 52. Kf2 {[%emt 0:00:05]} Qh2+ {[%emt 0:00:06]} 53. Kf1 {[%emt 0:02:51]} Qh1+ {[%emt 0:00:08]} 1/2-1/2

[Event "Hungary Olimpic Hopes 2022"]
[Site "Tapolca"]
[Date "2022.06.25"]
[Round "5.11"]
[White "Karacsonyi, Bank"]
[Black "Berla, Zoltan Mate"]
[Result "1-0"]
[ECO "B33"]
[WhiteElo "1812"]
[BlackElo "1454"]
[Annotator "NA RC"]
[PlyCount "71"]
[EventDate "2022.06.23"]
[EventType "swiss"]
[EventCountry "HUN"]
[SourceTitle "playchess.com"]
[Source "ChessBase"]
[SourceQuality "1"]
[TimeControl "5400+30"]

1. e4 {[%emt 0:00:04]} c5 {[%emt 0:00:04]} 2. Nf3 {[%emt 0:00:08]} Nc6 {[%emt 0:00:07]} 3. d4 {[%emt 0:00:06]} cxd4 {[%emt 0:00:06]} 4. Nxd4 {[%emt 0:00:05]} Nf6 {[%emt 0:00:07]} 5. Nc3 {[%emt 0:00:04]} e5 {[%emt 0:00:14]} 6. Ndb5 {[%emt 0:00:17]} d6 {[%emt 0:00:07]} 7. Bg5 {[%emt 0:00:11]} a6 {[%emt 0:00:07]} 8. Na3 {[%emt 0:00:04]} b5 {[%emt 0:00:05]} 9. Nd5 {[%emt 0:00:04]} Be7 {[%emt 0:00:06]} 10. Bxf6 {[%emt 0:00:06]} Bxf6 {[%emt 0:00:04]} 11. c3 {[%emt 0:00:15]} O-O {[%emt 0:00:27]} 12. Nc2 Bg5 13. a4 {[%emt 0:01:03]} bxa4 {[%emt 0:01:40]} 14. Rxa4 {[%emt 0:00:07]} Bb7 {[%emt 0:15:06]} 15. Ncb4 a5 {[%emt 0:00:06]} 16. Nxc6 {[%emt 0:22:20]} Bxc6 {[%emt 0:12:17]} 17. Ra2 {[%emt 0:02:25]} Bb7 18. Bc4 {[%emt 0:00:54]} Rc8 {[%emt 0:01:51]} 19. Qd3 {[%emt 0:02:03]} Kh8 {[%emt 0:12:49]} 20. O-O {[%emt 0:01:01]} Re8 {[%emt 0:02:49]} 21. Rfa1 {[%emt 0:10:23]} Rc5 {[%emt 0:13:11]} 22. b3 {[%emt 0:08:14]} f5 {[%emt 0:09:18]} 23. Rd1 {[%emt 0:02:01]} fxe4 {[%emt 0:00:53]} 24. Qxe4 {[%emt 0:02:08]} Rf8 {[%emt 0:01:02]} 25. g3 {[%emt 0:01:04]} Bxd5 {[%emt 0:01:46]} 26. Rxd5 {[%emt 0:07:10]} Qb6 {[%emt 0:04:20]} 27. h4 {[%emt 0:01:09]} Be7 {[%emt 0:03:58]} 28. Kg2 {[%emt 0:01:47]} Rfc8 {[%emt 0:01:30]} 29. h5 Rxd5 {[%emt 0:04:19]} 30. Qxd5 {[%emt 0:01:10]} Qc5 31. Rxa5 {[%emt 0:05:26]} Qxd5+ {[%emt 0:00:11]} 32. Bxd5 {[%emt 0:00:03]} h6 {[%emt 0:00:24]} 33. Ra7 {[%emt 0:01:03]} Bf6 34. Kh3 {[%emt 0:00:13]} Rc5 {[%emt 0:07:09]} 35. Ra8+ {[%emt 0:00:03]} Kh7 36. Bg8+ 1-0

[Event "Hungary Olimpic Hopes 2022"]
[Site "Tapolca"]
[Date "2022.06.25"]
[Round "5.12"]
[White "Kerekes, Laszlo Fulop"]
[Black "Baki, Bence"]
[Result "1-0"]
[ECO "D37"]
[WhiteElo "1455"]
[BlackElo "1566"]
[Annotator "NA"]
[PlyCount "63"]
[EventDate "2022.06.23"]
[EventType "swiss"]
[EventCountry "HUN"]
[SourceTitle "playchess.com"]
[Source "ChessBase"]
[SourceQuality "1"]
[TimeControl "5400+30"]

1. d4 {[%emt 0:00:18]} d5 {[%emt 0:00:06]} 2. c4 {[%emt 0:01:08]} e6 {[%emt 0:00:15]} 3. Nf3 {[%emt 0:00:35]} Nf6 {[%emt 0:00:09]} 4. Nc3 {[%emt 0:00:32]} Nbd7 {[%emt 0:01:22]} 5. Bg5 {[%emt 0:00:39]} Be7 {[%emt 0:00:12]} 6. e3 {[%emt 0:00:37]} h6 {[%emt 0:02:05]} 7. Bh4 {[%emt 0:07:15]} O-O 8. Bd3 dxc4 {[%emt 0:01:44]} 9. Bxc4 {[%emt 0:00:55]} Nb6 {[%emt 0:00:05]} 10. Bd3 {[%emt 0:01:19]} Nfd5 11. Bxe7 {[%emt 0:01:59]} Qxe7 {[%emt 0:01:01]} 12. O-O {[%emt 0:02:33]} Bd7 {[%emt 0:04:43]} 13. Rc1 {[%emt 0:01:28]} Bc6 {[%emt 0:02:12]} 14. Ne5 {[%emt 0:02:17]} Nxc3 15. Nxc6 {[%emt 0:00:28]} bxc6 {[%emt 0:01:00]} 16. Rxc3 {[%emt 0:05:07]} Qd7 {[%emt 0:00:59]} 17. Qf3 {[%emt 0:03:25]} Nd5 {[%emt 0:04:01]} 18. Rc5 {[%emt 0:07:47]} Rab8 {[%emt 0:00:54]} 19. b3 {[%emt 0:02:54]} Rb6 {[%emt 0:00:38]} 20. Rfc1 {[%emt 0:10:13]} Rfb8 {[%emt 0:08:15]} 21. g4 {[%emt 0:02:55]} Nb4 {[%emt 0:05:34]} 22. Bb1 {[%emt 0:06:43]} Ra6 {[%emt 0:10:36]} 23. g5 Rb5 {[%emt 0:00:07]} 24. gxh6 {[%emt 0:02:41]} gxh6 {[%emt 0:02:29]} 25. Qf6 Nd5 {[%emt 0:00:11]} 26. Qxh6 {[%emt 0:03:26]} f5 27. Rxb5 {[%emt 0:02:49]} cxb5 {[%emt 0:00:51]} 28. Kh1 {[%emt 0:00:35]} Nxe3 29. fxe3 Qd5+ {[%emt 0:09:08]} 30. e4 {[%emt 0:00:48]} Qxd4 31. Rg1+ {[%emt 0:00:17]} Kf7 {[%emt 0:00:43]} 32. Qh7+ 1-0

[Event "Hungary Olimpic Hopes 2022"]
[Site "Tapolca"]
[Date "2022.06.25"]
[Round "5.13"]
[White "Balazs, Szabina Zoe"]
[Black "Biro, Beata"]
[Result "0-1"]
[ECO "B41"]
[WhiteElo "1426"]
[BlackElo "1480"]
[Annotator "NA RC"]
[PlyCount "72"]
[EventDate "2022.06.23"]
[EventType "swiss"]
[EventCountry "HUN"]
[SourceTitle "playchess.com"]
[Source "ChessBase"]
[SourceQuality "1"]
[TimeControl "5400+30"]

1. e4 {[%emt 0:00:04]} c5 {[%emt 0:00:06]} 2. Nf3 {[%emt 0:00:05]} e6 {[%emt 0:00:13]} 3. d4 {[%emt 0:00:18]} cxd4 {[%emt 0:00:32]} 4. Nxd4 {[%emt 0:00:26]} a6 {[%emt 0:00:18]} 5. c4 {[%emt 0:01:22]} Qc7 {[%emt 0:01:13]} 6. Nc3 {[%emt 0:01:14]} Nf6 {[%emt 0:01:02]} 7. Be3 {[%emt 0:01:23]} b6 {[%emt 0:01:31]} 8. f3 {[%emt 0:01:15]} Bb7 {[%emt 0:01:12]} 9. Nc2 {[%emt 0:01:25]} d6 {[%emt 0:01:36]} 10. Qd2 {[%emt 0:01:30]} Nbd7 {[%emt 0:01:34]} 11. Be2 {[%emt 0:01:59]} Be7 {[%emt 0:01:24]} 12. b3 {[%emt 0:01:25]} Rc8 {[%emt 0:01:48]} 13. Rc1 {[%emt 0:04:14]} b5 {[%emt 0:03:07]} 14. Nb1 bxc4 {[%emt 0:02:41]} 15. Bxc4 {[%emt 0:00:40]} d5 {[%emt 0:01:59]} 16. exd5 {[%emt 0:00:11]} exd5 {[%emt 0:00:13]} 17. Bd3 {[%emt 0:00:47]} O-O {[%emt 0:02:01]} 18. O-O {[%emt 0:00:49]} Bd6 {[%emt 0:03:11]} 19. g3 Qb8 {[%emt 0:02:44]} 20. Nb4 {[%emt 0:11:38]} Qa8 {[%emt 0:02:53]} 21. Nc2 {[%emt 0:02:29]} Ne5 {[%emt 0:03:15]} 22. Be2 {[%emt 0:01:34]} Rfd8 {[%emt 0:03:42]} 23. Nd4 {[%emt 0:04:18]} a5 {[%emt 0:05:31]} 24. Bg5 {[%emt 0:09:52]} Ned7 {[%emt 0:04:16]} 25. Nf5 {[%emt 0:05:46]} Bb4 {[%emt 0:02:50]} 26. Qb2 {[%emt 0:00:58]} Re8 {[%emt 0:02:00]} 27. a3 {[%emt 0:07:44]} Bc5+ {[%emt 0:01:06]} 28. Kg2 {[%emt 0:00:09]} Qb8 {[%emt 0:00:55]} 29. b4 {[%emt 0:01:57]} axb4 {[%emt 0:01:34]} 30. axb4 {[%emt 0:00:17]} Bxb4 {[%emt 0:02:30]} 31. Bb5 {[%emt 0:01:16]} Qe5 {[%emt 0:06:02]} 32. Bxf6 {[%emt 0:03:50]} Qxf5 33. Bxg7 {[%emt 0:00:36]} Rxc1 {[%emt 0:04:19]} 34. Rxc1 {[%emt 0:00:09]} d4 {[%emt 0:10:15]} 35. Bxd7 {[%emt 0:02:26]} Qxf3+ {[%emt 0:00:25]} 36. Kh3 {[%emt 0:00:49]} Qh5# {[%emt 0:00:12]} 0-1

[Event "Hungary Olimpic Hopes 2022"]
[Site "Tapolca"]
[Date "2022.06.25"]
[Round "5.14"]
[White "Balogh, Gerda"]
[Black "Molnar, Dalma Reka"]
[Result "0-1"]
[ECO "B36"]
[WhiteElo "1531"]
[BlackElo "1554"]
[Annotator "NA RC"]
[PlyCount "70"]
[EventDate "2022.06.23"]
[EventType "swiss"]
[EventCountry "HUN"]
[SourceTitle "playchess.com"]
[Source "ChessBase"]
[SourceQuality "1"]
[TimeControl "5400+30"]

1. e4 {[%emt 0:00:02]} c5 {[%emt 0:00:05]} 2. Nf3 {[%emt 0:00:06]} Nc6 {[%emt 0:00:10]} 3. d4 {[%emt 0:00:14]} cxd4 {[%emt 0:00:10]} 4. Nxd4 {[%emt 0:00:11]} g6 {[%emt 0:00:19]} 5. c4 {[%emt 0:00:06]} Nf6 {[%emt 0:00:16]} 6. Nc3 {[%emt 0:00:16]} d6 {[%emt 0:00:26]} 7. Be2 {[%emt 0:06:46]} Nxd4 {[%emt 0:00:15]} 8. Qxd4 {[%emt 0:00:10]} Bg7 {[%emt 0:00:12]} 9. Be3 {[%emt 0:00:32]} O-O {[%emt 0:00:13]} 10. O-O-O {[%emt 0:00:25]} Ng4 {[%emt 0:01:23]} 11. Qd2 {[%emt 0:00:18]} Nxe3 {[%emt 0:01:21]} 12. Qxe3 {[%emt 0:00:28]} Be6 {[%emt 0:01:28]} 13. f4 {[%emt 0:00:41]} Qc7 {[%emt 0:00:54]} 14. Qd3 {[%emt 0:00:46]} Rac8 {[%emt 0:03:36]} 15. Nd5 {[%emt 0:02:01]} Bxd5 {[%emt 0:00:58]} 16. exd5 {[%emt 0:00:10]} b5 {[%emt 0:00:41]} 17. b3 {[%emt 0:02:17]} bxc4 {[%emt 0:01:45]} 18. bxc4 {[%emt 0:00:29]} Rb8 {[%emt 0:02:04]} 19. Rd2 {[%emt 0:03:32]} Rb6 {[%emt 0:02:27]} 20. Qc2 {[%emt 0:01:54]} Rfb8 {[%emt 0:03:50]} 21. Rf1 {[%emt 0:01:32]} Qb7 {[%emt 0:02:00]} 22. Bd3 {[%emt 0:04:45]} Rb2 {[%emt 0:01:02]} 23. Qxb2 {[%emt 0:01:08]} Bxb2+ {[%emt 0:00:12]} 24. Kd1 {[%emt 0:00:26]} Bg7 {[%emt 0:01:52]} 25. Ke2 {[%emt 0:00:20]} Qd7 {[%emt 0:01:00]} 26. Rfd1 {[%emt 0:00:50]} Qg4+ {[%emt 0:00:37]} 27. Ke1 {[%emt 0:00:18]} Bc3 {[%emt 0:00:31]} 28. Kf1 {[%emt 0:00:23]} Bxd2 {[%emt 0:00:13]} 29. Rxd2 {[%emt 0:00:19]} Qxf4+ {[%emt 0:00:11]} 30. Rf2 {[%emt 0:00:23]} Qc1+ {[%emt 0:00:10]} 31. Ke2 {[%emt 0:00:22]} Rb2+ {[%emt 0:00:04]} 32. Kf3 {[%emt 0:00:15]} Rxf2+ {[%emt 0:00:09]} 33. Kxf2 {[%emt 0:00:10]} Qd2+ {[%emt 0:00:08]} 34. Kg3 {[%emt 0:00:21]} Qxd3+ {[%emt 0:00:06]} 35. Kf2 {[%emt 0:00:13]} Qxc4 {[%emt 0:00:09]} 0-1

[Event "Hungary Olimpic Hopes 2022"]
[Site "Tapolca"]
[Date "2022.06.25"]
[Round "5.17"]
[White "Szollosi, Balazs"]
[Black "Papai, Mate"]
[Result "1-0"]
[ECO "B44"]
[WhiteElo "1294"]
[BlackElo "1406"]
[Annotator "NA RC"]
[PlyCount "77"]
[EventDate "2022.06.23"]
[EventType "swiss"]
[EventCountry "HUN"]
[SourceTitle "playchess.com"]
[Source "ChessBase"]
[SourceQuality "1"]
[TimeControl "5400+30"]

1. e4 {[%emt 0:30:03]} c5 {[%emt 0:30:05]} 2. Nf3 {[%emt 0:00:05]} e6 3. d4 {[%emt 0:00:05]} cxd4 {[%emt 0:00:09]} 4. Nxd4 {[%emt 0:00:11]} Nc6 {[%emt 0:00:09]} 5. c4 {[%emt 0:04:35]} Bb4+ 6. Bd2 Bxd2+ {[%emt 0:09:45]} 7. Qxd2 {[%emt 0:00:41]} Nf6 {[%emt 0:02:44]} 8. Nxc6 {[%emt 0:00:57]} bxc6 {[%emt 0:02:07]} 9. Nc3 {[%emt 0:00:54]} O-O {[%emt 0:01:28]} 10. Be2 Bb7 {[%emt 0:01:03]} 11. O-O {[%emt 0:01:06]} d5 {[%emt 0:00:34]} 12. exd5 {[%emt 0:00:24]} cxd5 {[%emt 0:00:11]} 13. Bf3 {[%emt 0:00:45]} Qc7 {[%emt 0:05:54]} 14. cxd5 Nxd5 {[%emt 0:00:09]} 15. Bxd5 {[%emt 0:01:38]} Bxd5 16. Nxd5 {[%emt 0:00:37]} exd5 {[%emt 0:02:29]} 17. Qxd5 {[%emt 0:00:59]} Rfd8 {[%emt 0:03:22]} 18. Qf3 {[%emt 0:00:41]} h6 {[%emt 0:01:00]} 19. h3 {[%emt 0:00:30]} Qb6 {[%emt 0:02:56]} 20. b3 {[%emt 0:03:32]} Rac8 {[%emt 0:02:26]} 21. Rfd1 {[%emt 0:00:46]} Qg6 {[%emt 0:00:22]} 22. Rxd8+ {[%emt 0:00:58]} Rxd8 {[%emt 0:02:16]} 23. Rd1 Qf6 {[%emt 0:00:08]} 24. Rxd8+ {[%emt 0:00:57]} Qxd8 {[%emt 0:01:12]} 25. a4 {[%emt 0:00:50]} Qc8 {[%emt 0:00:28]} 26. Qe3 {[%emt 0:01:27]} Qb8 27. Qc5 Qxb3 {[%emt 0:00:41]} 28. Qxa7 {[%emt 0:01:00]} Qd1+ {[%emt 0:00:55]} 29. Kh2 {[%emt 0:00:20]} g5 {[%emt 0:00:29]} 30. a5 {[%emt 0:00:22]} Qd6+ {[%emt 0:00:51]} 31. g3 Qd2 {[%emt 0:00:30]} 32. a6 {[%emt 0:00:47]} Qa2 {[%emt 0:00:40]} 33. Qb6 {[%emt 0:01:48]} Kh7 {[%emt 0:01:17]} 34. a7 {[%emt 0:00:23]} Kg7 {[%emt 0:01:17]} 35. Qd4+ Kg6 {[%emt 0:00:01]} 36. Qe4+ {[%emt 0:01:15]} f5 {[%emt 0:00:32]} 37. Qe8+ {[%emt 0:00:19]} Kf6 {[%emt 0:00:30]} 38. a8=Q {[%emt 0:00:16]} Qxf2+ 39. Qg2 1-0

[Event "Hungary Olimpic Hopes 2022"]
[Site "Tapolca"]
[Date "2022.06.25"]
[Round "5.18"]
[White "Biro, David Benedek"]
[Black "Minga-Nagy, Abel Inti"]
[Result "0-1"]
[ECO "B20"]
[WhiteElo "1117"]
[BlackElo "1364"]
[Annotator "NA RC"]
[PlyCount "136"]
[EventDate "2022.06.23"]
[EventType "swiss"]
[EventCountry "HUN"]
[SourceTitle "playchess.com"]
[Source "ChessBase"]
[SourceQuality "1"]
[TimeControl "5400+30"]

1. e4 {[%emt 0:30:01]} c5 {[%emt 0:30:06]} 2. b4 {[%emt 0:00:07]} cxb4 {[%emt 0:00:21]} 3. d4 {[%emt 0:00:08]} e6 {[%emt 0:00:13]} 4. Nf3 {[%emt 0:00:19]} d5 {[%emt 0:00:23]} 5. e5 {[%emt 0:00:19]} Nc6 {[%emt 0:00:28]} 6. Bd3 {[%emt 0:00:29]} Nge7 {[%emt 0:00:34]} 7. Bg5 {[%emt 0:01:29]} Qa5 {[%emt 0:00:35]} 8. Nbd2 {[%emt 0:00:38]} g6 {[%emt 0:00:42]} 9. Bf6 Rg8 {[%emt 0:00:28]} 10. Nb3 {[%emt 0:01:14]} Qb6 {[%emt 0:00:20]} 11. O-O {[%emt 0:01:17]} Nf5 12. Bxf5 {[%emt 0:01:14]} gxf5 {[%emt 0:00:52]} 13. Ng5 {[%emt 0:00:41]} h6 {[%emt 0:01:27]} 14. Nh7 {[%emt 0:01:37]} Bd7 {[%emt 0:01:02]} 15. Nxf8 {[%emt 0:02:43]} Kxf8 {[%emt 0:00:48]} 16. Nc5 {[%emt 0:00:35]} Ke8 {[%emt 0:00:33]} 17. c3 {[%emt 0:01:37]} Rb8 {[%emt 0:01:40]} 18. cxb4 {[%emt 0:02:06]} Qxb4 {[%emt 0:00:16]} 19. Rb1 {[%emt 0:01:41]} Qxd4 {[%emt 0:00:09]} 20. Qxd4 {[%emt 0:00:24]} Nxd4 {[%emt 0:00:10]} 21. Nxb7 {[%emt 0:00:22]} Bb5 {[%emt 0:00:47]} 22. Nd6+ {[%emt 0:00:37]} Kd7 {[%emt 0:00:05]} 23. Nxb5 {[%emt 0:00:48]} Nxb5 {[%emt 0:00:16]} 24. Rb4 {[%emt 0:02:29]} Nc3 {[%emt 0:00:16]} 25. a3 {[%emt 0:01:45]} Rxb4 {[%emt 0:00:16]} 26. axb4 {[%emt 0:00:12]} Rb8 {[%emt 0:00:25]} 27. Ra1 {[%emt 0:00:24]} Rb7 28. Ra6 {[%emt 0:01:48]} Ke8 {[%emt 0:01:33]} 29. Rd6 {[%emt 0:00:39]} Rb8 30. f3 {[%emt 0:01:12]} Kf8 {[%emt 0:01:47]} 31. Kf2 {[%emt 0:00:57]} Kg8 {[%emt 0:00:13]} 32. h4 {[%emt 0:02:02]} h5 33. Rd8+ {[%emt 0:01:38]} Rxd8 {[%emt 0:00:41]} 34. Bxd8 {[%emt 0:00:03]} Kf8 {[%emt 0:00:35]} 35. Ke3 {[%emt 0:01:07]} Ke8 {[%emt 0:00:24]} 36. Bc7 {[%emt 0:01:31]} a6 37. Kd2 {[%emt 0:00:56]} Nb5 {[%emt 0:00:47]} 38. Bb6 {[%emt 0:00:22]} Kd7 {[%emt 0:00:13]} 39. Kc2 {[%emt 0:00:32]} Kc6 {[%emt 0:00:26]} 40. Bc5 {[%emt 0:00:52]} a5 {[%emt 0:00:17]} 41. Kb3 {[%emt 0:00:27]} Nc7 {[%emt 0:00:31]} 42. Bd6 Nb5 43. Bc5 {[%emt 0:02:13]} axb4 {[%emt 0:03:33]} 44. Kxb4 {[%emt 0:00:16]} Nc7 {[%emt 0:00:11]} 45. Bd4 {[%emt 0:00:33]} Na6+ {[%emt 0:00:42]} 46. Kc3 {[%emt 0:01:20]} Nc5 47. Be3 {[%emt 0:01:05]} Kb5 {[%emt 0:00:13]} 48. g4 {[%emt 0:00:41]} fxg4 {[%emt 0:01:08]} 49. fxg4 {[%emt 0:00:14]} hxg4 {[%emt 0:00:04]} 50. h5 {[%emt 0:00:23]} Nd7 {[%emt 0:00:12]} 51. Bf4 {[%emt 0:00:59]} f5 {[%emt 0:00:44]} 52. Kd4 {[%emt 0:02:09]} Kb4 53. Bg3 {[%emt 0:00:54]} Kb3 {[%emt 0:02:03]} 54. Kd3 {[%emt 0:00:40]} Kb2 {[%emt 0:01:12]} 55. Kd2 {[%emt 0:00:36]} d4 {[%emt 0:00:06]} 56. Kd3 {[%emt 0:00:12]} Kc1 57. Bf4+ {[%emt 0:05:27]} Kd1 {[%emt 0:00:15]} 58. Bg3 {[%emt 0:00:17]} Nf8 {[%emt 0:00:38]} 59. Bh4 {[%emt 0:03:54]} f4 {[%emt 0:00:31]} 60. Kxd4 {[%emt 0:00:14]} Ke2 {[%emt 0:00:29]} 61. Bg5 {[%emt 0:01:29]} f3 {[%emt 0:00:18]} 62. Bh4 {[%emt 0:01:26]} f2 {[%emt 0:01:10]} 63. Bxf2 {[%emt 0:00:32]} Kxf2 {[%emt 0:00:06]} 64. Ke4 {[%emt 0:00:07]} g3 {[%emt 0:00:06]} 65. Kf4 {[%emt 0:00:25]} g2 {[%emt 0:00:01]} 66. h6 {[%emt 0:00:14]} g1=Q {[%emt 0:00:09]} 67. h7 {[%emt 0:00:12]} Qg3+ {[%emt 0:00:26]} 68. Ke4 {[%emt 0:00:09]} Qe3# 0-1